[Event "*** Titled Tuesday Blitz"]
[Site "Chess.com"]
[Date "2020.04.21"]
[Round "6"]
[White "12teen"]
[Black "MarcoRiehle"]
[Result "1-0"]
[WhiteElo "2768"]
[BlackElo "2607"]
[TimeControl "180+1"]
[EndTime "11:08:02 PDT"]
[Termination "12teen won by resignation"]

1. g3 {[%clk 0:03:00.9]} 1... c5 {[%clk 0:02:59.3]} 2. Bg2 {[%clk 0:03:01.3]}
2... Nc6 {[%clk 0:02:52]} 3. c3 {[%clk 0:03:01.4]} 3... e5 {[%clk 0:02:51.5]} 4.
e4 {[%clk 0:03:00.5]} 4... Nge7 {[%clk 0:02:50.5]} 5. d3 {[%clk 0:02:59.1]} 5...
d5 {[%clk 0:02:50.4]} 6. Nd2 {[%clk 0:02:52.9]} 6... Be6 {[%clk 0:02:47.6]} 7.
Ngf3 {[%clk 0:02:50.7]} 7... f6 {[%clk 0:02:46.6]} 8. O-O {[%clk 0:02:49.8]}
8... d4 {[%clk 0:02:45.5]} 9. c4 {[%clk 0:02:47.7]} 9... Qd7 {[%clk 0:02:44.9]}
10. a3 {[%clk 0:02:40.9]} 10... O-O-O {[%clk 0:02:43.9]} 11. b4 {[%clk
0:02:39.6]} 11... g5 {[%clk 0:02:38.8]} 12. Qa4 {[%clk 0:02:31.2]} 12... Ng6
{[%clk 0:02:28.3]} 13. b5 {[%clk 0:02:23.8]} 13... Nb8 {[%clk 0:02:27.6]} 14.
Qxa7 {[%clk 0:02:21.4]} 14... Rg8 {[%clk 0:02:24.2]} 15. Nb3 {[%clk 0:02:19.3]}
15... Qc7 {[%clk 0:02:00.4]} 16. a4 {[%clk 0:02:02.1]} 16... Nf4 {[%clk
0:01:45.4]} 17. gxf4 {[%clk 0:01:48.5]} 17... gxf4 {[%clk 0:01:46.3]} 18. Kh1
{[%clk 0:01:39.8]} 18... Rd7 {[%clk 0:01:15.9]} 19. Ba3 {[%clk 0:01:23]} 19...
Rdg7 {[%clk 0:01:01.3]} 20. Rg1 {[%clk 0:01:21.5]} 20... Bg4 {[%clk 0:00:28.2]}
21. Nxc5 {[%clk 0:01:07.9]} 21... Bh5 {[%clk 0:00:20.4]} 22. Bh3+ {[%clk
0:00:51.3]} 22... Kd8 {[%clk 0:00:17.1]} 23. Ne6+ {[%clk 0:00:51.2]} 23... Kd7
{[%clk 0:00:01]} 24. Nxc7+ {[%clk 0:00:47.8]} 24... Kxc7 {[%clk 0:00:01.9]} 25.
Qa5+ {[%clk 0:00:40.9]} 25... b6 {[%clk 0:00:01.5]} 26. Qa7+ {[%clk 0:00:41.1]}
1-0

[Event "*** Titled Tuesday Blitz"]
[Site "Chess.com"]
[Date "2020.04.21"]
[Round "6"]
[White "Karacsonyi_Gellert"]
[Black "sganerdene"]
[Result "1-0"]
[WhiteElo "2507"]
[BlackElo "2651"]
[TimeControl "180+1"]
[EndTime "11:08:02 PDT"]
[Termination "Karacsonyi_Gellert won by resignation"]

1. e4 {[%clk 0:03:00.9]} 1... c5 {[%clk 0:03:00.3]} 2. Nf3 {[%clk 0:03:00.2]}
2... e6 {[%clk 0:03:00.3]} 3. d4 {[%clk 0:03:00.5]} 3... cxd4 {[%clk 0:03:00.8]}
4. Nxd4 {[%clk 0:03:01.4]} 4... Nc6 {[%clk 0:03:01.3]} 5. Nc3 {[%clk 0:03:01.3]}
5... d6 {[%clk 0:03:01.9]} 6. f4 {[%clk 0:02:57.3]} 6... Nf6 {[%clk 0:03:02.1]}
7. Be3 {[%clk 0:02:56.5]} 7... Be7 {[%clk 0:03:02.1]} 8. Qf3 {[%clk 0:02:56.7]}
8... a6 {[%clk 0:03:02.3]} 9. O-O-O {[%clk 0:02:56.8]} 9... Qc7 {[%clk
0:03:02.5]} 10. g4 {[%clk 0:02:56]} 10... Nxd4 {[%clk 0:03:01.9]} 11. Rxd4
{[%clk 0:02:56.9]} 11... b5 {[%clk 0:02:59.5]} 12. g5 {[%clk 0:02:52.2]} 12...
Nd7 {[%clk 0:02:59]} 13. h4 {[%clk 0:02:51.6]} 13... Bb7 {[%clk 0:02:58.7]} 14.
h5 {[%clk 0:02:51.7]} 14... O-O-O {[%clk 0:02:55.8]} 15. a4 {[%clk 0:02:26.5]}
15... e5 {[%clk 0:02:53.7]} 16. Nd5 {[%clk 0:02:22.1]} 16... Bxd5 {[%clk
0:02:28.5]} 17. Rxd5 {[%clk 0:02:23]} 17... exf4 {[%clk 0:02:28.7]} 18. Bxf4
{[%clk 0:02:19]} 18... Nb6 {[%clk 0:02:27.5]} 19. Rd3 {[%clk 0:01:58.2]} 19...
Nxa4 {[%clk 0:02:27.1]} 20. e5 {[%clk 0:01:52.6]} 20... Qb7 {[%clk 0:01:46.9]}
21. Bh3+ {[%clk 0:01:44.4]} 21... Kb8 {[%clk 0:01:45]} 22. Qxb7+ {[%clk
0:01:32.2]} 22... Kxb7 {[%clk 0:01:45.9]} 23. exd6 {[%clk 0:01:32.8]} 23... Bf8
{[%clk 0:01:46.1]} 24. Bg2+ {[%clk 0:01:31.2]} 24... Ka7 {[%clk 0:01:30.3]} 25.
Be3+ {[%clk 0:01:16.7]} 25... Nb6 {[%clk 0:01:28.4]} 26. Rhd1 {[%clk 0:01:10.9]}
26... f6 {[%clk 0:01:23.3]} 27. Rc3 {[%clk 0:00:59.7]} 27... Bxd6 {[%clk
0:00:28.2]} 28. Rc6 {[%clk 0:00:59.7]} 28... Bf4 {[%clk 0:00:27.1]} 29. Bxf4
{[%clk 0:00:47.2]} 29... Nc4 {[%clk 0:00:27.5]} 30. Rc7+ {[%clk 0:00:45.2]}
30... Kb6 {[%clk 0:00:27.2]} 31. b4 {[%clk 0:00:38.5]} 31... a5 {[%clk
0:00:23.8]} 32. Rb7+ {[%clk 0:00:37.1]} 32... Ka6 {[%clk 0:00:24]} 33. bxa5
{[%clk 0:00:36.5]} 33... Kxa5 {[%clk 0:00:20.4]} 34. Bc7+ {[%clk 0:00:35.4]} 1-0

[Event "*** Titled Tuesday Blitz"]
[Site "Chess.com"]
[Date "2020.04.21"]
[Round "6"]
[White "MateSchmate"]
[Black "TST2014"]
[Result "0-1"]
[WhiteElo "2459"]
[BlackElo "2609"]
[TimeControl "180+1"]
[EndTime "11:08:04 PDT"]
[Termination "TST2014 won by checkmate"]

1. e4 {[%clk 0:03:00.9]} 1... c5 {[%clk 0:02:59.7]} 2. Nf3 {[%clk 0:03:00.4]}
2... Nc6 {[%clk 0:02:59.9]} 3. d4 {[%clk 0:03:00.7]} 3... cxd4 {[%clk
0:03:00.5]} 4. Nxd4 {[%clk 0:03:01.6]} 4... Nf6 {[%clk 0:03:00.9]} 5. Nc3 {[%clk
0:03:01.3]} 5... d6 {[%clk 0:03:01.3]} 6. Bg5 {[%clk 0:03:01.1]} 6... e6 {[%clk
0:03:01.5]} 7. Be2 {[%clk 0:02:57.2]} 7... a6 {[%clk 0:02:59.1]} 8. a4 {[%clk
0:02:55]} 8... Be7 {[%clk 0:02:57.8]} 9. Qd2 {[%clk 0:02:46.1]} 9... Bd7 {[%clk
0:02:47.9]} 10. Nb3 {[%clk 0:02:33.5]} 10... Qc7 {[%clk 0:02:35.3]} 11. f4
{[%clk 0:02:19.1]} 11... h6 {[%clk 0:02:33.2]} 12. Bxf6 {[%clk 0:02:11.4]} 12...
Bxf6 {[%clk 0:02:33.4]} 13. O-O-O {[%clk 0:02:00.2]} 13... Be7 {[%clk
0:02:26.5]} 14. Bf3 {[%clk 0:01:54.6]} 14... O-O {[%clk 0:02:18.2]} 15. g4
{[%clk 0:01:52.1]} 15... b5 {[%clk 0:02:16.2]} 16. h4 {[%clk 0:01:41.3]} 16...
bxa4 {[%clk 0:02:05.6]} 17. Nxa4 {[%clk 0:01:42.2]} 17... Rfc8 {[%clk
0:02:01.7]} 18. g5 {[%clk 0:01:37.4]} 18... Rab8 {[%clk 0:01:45.8]} 19. f5
{[%clk 0:01:25.2]} 19... Nb4 {[%clk 0:01:44.7]} 20. Nc3 {[%clk 0:01:22.5]} 20...
exf5 {[%clk 0:01:37.3]} 21. gxh6 {[%clk 0:01:18.1]} 21... Bf6 {[%clk 0:01:37.5]}
22. hxg7 {[%clk 0:01:07.7]} 22... Na2+ {[%clk 0:01:37.3]} 23. Nxa2 {[%clk
0:01:03.7]} 23... Rxb3 {[%clk 0:01:37.7]} 24. c3 {[%clk 0:01:03.7]} 24... Qa5
{[%clk 0:01:23.8]} 25. Kb1 {[%clk 0:00:55.7]} 25... Be6 {[%clk 0:00:48.9]} 26.
Nc1 {[%clk 0:00:43.7]} 26... Rbxc3 {[%clk 0:00:43.2]} 27. bxc3 {[%clk
0:00:33.4]} 27... Bxc3 {[%clk 0:00:42.3]} 28. Qxd6 {[%clk 0:00:33.5]} 28... Qa1+
{[%clk 0:00:37.8]} 29. Kc2 {[%clk 0:00:33.1]} 29... Be5+ {[%clk 0:00:33.2]} 30.
Qc6 {[%clk 0:00:22.3]} 30... Rxc6+ {[%clk 0:00:31.7]} 31. Kd2 {[%clk 0:00:22.7]}
31... Qd4+ {[%clk 0:00:27.2]} 32. Ke2 {[%clk 0:00:22.6]} 32... Rc2+ {[%clk
0:00:26.9]} 33. Kf1 {[%clk 0:00:22.2]} 33... Qf2# {[%clk 0:00:26.3]} 0-1

[Event "*** Titled Tuesday Blitz"]
[Site "Chess.com"]
[Date "2020.04.21"]
[Round "6"]
[White "nocnypako"]
[Black "Cecile-Haussernot"]
[Result "1-0"]
[WhiteElo "2576"]
[BlackElo "2342"]
[TimeControl "180+1"]
[EndTime "11:08:04 PDT"]
[Termination "nocnypako won by resignation"]

1. d4 {[%clk 0:03:00.9]} 1... Nf6 {[%clk 0:02:48.4]} 2. c4 {[%clk 0:02:58.6]}
2... e6 {[%clk 0:02:48.4]} 3. Nc3 {[%clk 0:02:59.1]} 3... Bb4 {[%clk 0:02:46.4]}
4. e3 {[%clk 0:02:59.2]} 4... O-O {[%clk 0:02:45.2]} 5. Ne2 {[%clk 0:02:59.8]}
5... d5 {[%clk 0:02:44.1]} 6. a3 {[%clk 0:02:59.7]} 6... Be7 {[%clk 0:02:42.9]}
7. cxd5 {[%clk 0:02:59.4]} 7... exd5 {[%clk 0:02:42.6]} 8. Nf4 {[%clk 0:03:00]}
8... c6 {[%clk 0:02:42.3]} 9. Bd3 {[%clk 0:03:00.6]} 9... Be6 {[%clk 0:02:34]}
10. O-O {[%clk 0:02:59.5]} 10... Qc7 {[%clk 0:02:23.9]} 11. f3 {[%clk
0:02:59.4]} 11... Nbd7 {[%clk 0:02:22.1]} 12. e4 {[%clk 0:02:54.4]} 12... dxe4
{[%clk 0:02:20.1]} 13. Nxe6 {[%clk 0:02:54.3]} 13... fxe6 {[%clk 0:02:19.4]} 14.
fxe4 {[%clk 0:02:54.6]} 14... e5 {[%clk 0:02:19.6]} 15. d5 {[%clk 0:02:23.4]}
15... cxd5 {[%clk 0:02:08.1]} 16. exd5 {[%clk 0:02:17.1]} 16... Bc5+ {[%clk
0:01:51.2]} 17. Kh1 {[%clk 0:02:15.5]} 17... Bd4 {[%clk 0:01:07.5]} 18. Bd2
{[%clk 0:02:04.5]} 18... Rae8 {[%clk 0:01:03]} 19. Nb5 {[%clk 0:02:02.8]} 19...
Qb6 {[%clk 0:01:01.9]} 20. Bb4 {[%clk 0:01:49.3]} 20... Nc5 {[%clk 0:00:45.4]}
21. Nxd4 {[%clk 0:00:56.1]} 21... exd4 {[%clk 0:00:40]} 22. Bf5 {[%clk 0:00:55]}
22... d3 {[%clk 0:00:37.5]} 23. Bxd3 {[%clk 0:00:48.8]} 23... Re3 {[%clk
0:00:31.8]} 24. Bc4 {[%clk 0:00:45.4]} 24... Nce4 {[%clk 0:00:30.4]} 25. Bxf8
{[%clk 0:00:39.9]} 25... Qxb2 {[%clk 0:00:28]} 26. d6+ {[%clk 0:00:29.6]} 26...
Kxf8 {[%clk 0:00:26.4]} 27. d7 {[%clk 0:00:29.8]} 27... Nf2+ {[%clk 0:00:23.5]}
28. Rxf2 {[%clk 0:00:29.1]} 28... Qxf2 {[%clk 0:00:24.4]} 29. d8=Q+ {[%clk
0:00:28.8]} 1-0

[Event "*** Titled Tuesday Blitz"]
[Site "Chess.com"]
[Date "2020.04.21"]
[Round "6"]
[White "murtas73"]
[Black "GMAkobianSTL"]
[Result "1-0"]
[WhiteElo "2633"]
[BlackElo "2776"]
[TimeControl "180+1"]
[EndTime "11:08:06 PDT"]
[Termination "murtas73 won by resignation"]

1. d4 {[%clk 0:03:00.9]} 1... Nf6 {[%clk 0:02:59.1]} 2. c4 {[%clk 0:03:01.1]}
2... b6 {[%clk 0:02:59]} 3. Nc3 {[%clk 0:03:00.8]} 3... Bb7 {[%clk 0:02:57.8]}
4. Nf3 {[%clk 0:03:00.8]} 4... e6 {[%clk 0:02:57.3]} 5. g3 {[%clk 0:03:00.3]}
5... Bb4 {[%clk 0:02:57]} 6. Qb3 {[%clk 0:02:56.6]} 6... a5 {[%clk 0:02:50]} 7.
a3 {[%clk 0:02:55.7]} 7... Bxc3+ {[%clk 0:02:49.6]} 8. Qxc3 {[%clk 0:02:55.8]}
8... Ne4 {[%clk 0:02:49.7]} 9. Qc2 {[%clk 0:02:54.5]} 9... f5 {[%clk 0:02:49.6]}
10. b3 {[%clk 0:02:53]} 10... O-O {[%clk 0:02:48.7]} 11. Bg2 {[%clk 0:02:52.9]}
11... Nc6 {[%clk 0:02:42]} 12. O-O {[%clk 0:02:51.9]} 12... Qe7 {[%clk
0:02:35.7]} 13. Bb2 {[%clk 0:02:51.1]} 13... Nd8 {[%clk 0:02:33.5]} 14. Rad1
{[%clk 0:02:47.4]} 14... Nf7 {[%clk 0:02:33.3]} 15. d5 {[%clk 0:02:44.8]} 15...
Rad8 {[%clk 0:02:29.4]} 16. Nd4 {[%clk 0:02:43.1]} 16... Nfd6 {[%clk 0:02:25.2]}
17. f3 {[%clk 0:02:34.6]} 17... Nf6 {[%clk 0:02:24.3]} 18. e4 {[%clk 0:02:34.1]}
18... fxe4 {[%clk 0:02:23.9]} 19. fxe4 {[%clk 0:02:32.8]} 19... e5 {[%clk
0:02:23.5]} 20. Ne2 {[%clk 0:02:27]} 20... Nf7 {[%clk 0:02:19.1]} 21. h3 {[%clk
0:02:23.6]} 21... d6 {[%clk 0:02:18.8]} 22. Bc1 {[%clk 0:02:18.3]} 22... Bc8
{[%clk 0:02:18]} 23. Be3 {[%clk 0:02:16.7]} 23... h6 {[%clk 0:02:17.7]} 24. Qd2
{[%clk 0:02:15.7]} 24... Nh8 {[%clk 0:02:16.8]} 25. b4 {[%clk 0:02:14]} 25...
Nd7 {[%clk 0:02:14.8]} 26. Kh2 {[%clk 0:02:10.4]} 26... axb4 {[%clk 0:02:14.7]}
27. axb4 {[%clk 0:02:09.6]} 27... Ng6 {[%clk 0:02:12.6]} 28. Nc3 {[%clk
0:02:04.4]} 28... Rxf1 {[%clk 0:02:11.5]} 29. Rxf1 {[%clk 0:02:03.5]} 29... Rf8
{[%clk 0:02:12]} 30. Rc1 {[%clk 0:02:00.9]} 30... Ba6 {[%clk 0:02:10.3]} 31. Qa2
{[%clk 0:01:58.6]} 31... Ra8 {[%clk 0:02:05.9]} 32. Qe2 {[%clk 0:01:56.6]} 32...
Kh7 {[%clk 0:01:59.4]} 33. h4 {[%clk 0:01:50.2]} 33... Nf6 {[%clk 0:01:56]} 34.
Bf3 {[%clk 0:01:45.9]} 34... Bc8 {[%clk 0:01:52.6]} 35. c5 {[%clk 0:01:36.7]}
35... bxc5 {[%clk 0:01:51.4]} 36. bxc5 {[%clk 0:01:36.5]} 36... Qd7 {[%clk
0:01:52]} 37. Kg1 {[%clk 0:01:29.2]} 37... Ra3 {[%clk 0:01:31.9]} 38. c6 {[%clk
0:01:23.2]} 38... Qf7 {[%clk 0:01:26.3]} 39. Bg2 {[%clk 0:01:10.8]} 39... Ne7
{[%clk 0:01:23.2]} 40. Qb2 {[%clk 0:01:08.7]} 40... Ra8 {[%clk 0:01:21.9]} 41.
Rf1 {[%clk 0:01:07]} 41... Qg6 {[%clk 0:01:21]} 42. Bf2 {[%clk 0:01:02.3]} 42...
Ng4 {[%clk 0:01:05.1]} 43. Qd2 {[%clk 0:01:00.3]} 43... Nxf2 {[%clk 0:01:00.4]}
44. Qxf2 {[%clk 0:00:58.1]} 44... Ng8 {[%clk 0:00:57.9]} 45. Nb5 {[%clk
0:00:48.1]} 45... Nf6 {[%clk 0:00:57.1]} 46. Nxc7 {[%clk 0:00:47.7]} 46... Ra3
{[%clk 0:00:56.6]} 47. Ne6 {[%clk 0:00:45.8]} 47... Rxg3 {[%clk 0:00:55.1]} 48.
Nf8+ {[%clk 0:00:45.3]} 1-0

[Event "*** Titled Tuesday Blitz"]
[Site "Chess.com"]
[Date "2020.04.21"]
[Round "6"]
[White "grandcoach"]
[Black "ALEXJR20"]
[Result "1-0"]
[WhiteElo "1968"]
[BlackElo "2221"]
[TimeControl "180+1"]
[EndTime "11:08:09 PDT"]
[Termination "grandcoach won by resignation"]

1. e4 {[%clk 0:02:48.3]} 1... Nc6 {[%clk 0:03:00.2]} 2. d4 {[%clk 0:02:47.2]}
2... d5 {[%clk 0:03:00.3]} 3. exd5 {[%clk 0:02:47]} 3... Qxd5 {[%clk 0:03:01.2]}
4. Nc3 {[%clk 0:02:44]} 4... Qxd4 {[%clk 0:03:00.1]} 5. Nb5 {[%clk 0:02:28.2]}
5... Qb6 {[%clk 0:02:39.3]} 6. Be3 {[%clk 0:02:23.1]} 6... Qa5+ {[%clk
0:02:35.4]} 7. c3 {[%clk 0:02:23.6]} 7... e5 {[%clk 0:02:21]} 8. b4 {[%clk
0:02:21.5]} 8... Nxb4 {[%clk 0:02:21.1]} 9. cxb4 {[%clk 0:02:21.6]} 9... Bxb4+
{[%clk 0:02:19.2]} 10. Bd2 {[%clk 0:02:22.1]} 10... Bd7 {[%clk 0:01:57.3]} 11.
Nxc7+ {[%clk 0:02:19.2]} 11... Qxc7 {[%clk 0:01:54.7]} 12. Bxb4 {[%clk
0:02:19.2]} 12... Nf6 {[%clk 0:01:45.2]} 13. Qd6 {[%clk 0:02:15.4]} 13... Qxd6
{[%clk 0:01:25.4]} 14. Bxd6 {[%clk 0:02:16.3]} 14... e4 {[%clk 0:01:25.9]} 15.
Bc4 {[%clk 0:01:59.2]} 15... O-O-O {[%clk 0:01:19.3]} 16. Rc1 {[%clk 0:01:57.3]}
16... Bc6 {[%clk 0:01:14.3]} 17. Be7 {[%clk 0:01:47]} 17... Rd7 {[%clk
0:01:06.1]} 18. Bxf6 {[%clk 0:01:45.2]} 18... gxf6 {[%clk 0:01:07]} 19. Ne2
{[%clk 0:01:43.4]} 19... e3 {[%clk 0:00:59]} 20. fxe3 {[%clk 0:01:38.5]} 20...
Re8 {[%clk 0:00:51.4]} 21. Kf2 {[%clk 0:01:34.6]} 21... Rg8 {[%clk 0:00:20.8]}
22. Nf4 {[%clk 0:01:30.8]} 22... Rd2+ {[%clk 0:00:19.3]} 23. Be2 {[%clk
0:01:30.7]} 23... Rxa2 {[%clk 0:00:18.3]} 24. Ra1 {[%clk 0:01:27.9]} 24... Rb2
{[%clk 0:00:17.2]} 25. Rxa7 {[%clk 0:01:20.9]} 25... Kc7 {[%clk 0:00:17.4]} 26.
Re1 {[%clk 0:01:07.5]} 26... Re8 {[%clk 0:00:16.5]} 27. Ra3 {[%clk 0:01:06.1]}
27... Rb5 {[%clk 0:00:15.2]} 28. Bxb5 {[%clk 0:01:04.8]} 28... Bxb5 {[%clk
0:00:14.9]} 29. Nd5+ {[%clk 0:01:03.1]} 29... Kd6 {[%clk 0:00:14]} 30. Nxf6
{[%clk 0:01:02.1]} 30... Re6 {[%clk 0:00:14.3]} 31. Rd1+ {[%clk 0:01:00.6]}
31... Ke5 {[%clk 0:00:14.1]} 32. Ng4+ {[%clk 0:00:59.9]} 32... Ke4 {[%clk
0:00:12.6]} 33. Rd4+ {[%clk 0:00:57.8]} 33... Kf5 {[%clk 0:00:12.6]} 34. Ra5
{[%clk 0:00:57.1]} 34... Rb6 {[%clk 0:00:10.5]} 35. Rd5+ {[%clk 0:00:54.2]}
35... Kxg4 {[%clk 0:00:09.8]} 36. Raxb5 {[%clk 0:00:54.3]} 36... Rf6+ {[%clk
0:00:10.7]} 37. Ke2 {[%clk 0:00:52.4]} 37... Rc6 {[%clk 0:00:11.6]} 38. Rdc5
{[%clk 0:00:51.4]} 38... Rd6 {[%clk 0:00:11.6]} 39. Rxb7 {[%clk 0:00:51.1]}
39... Rf6 {[%clk 0:00:11.6]} 40. Rb4+ {[%clk 0:00:50.8]} 1-0

[Event "*** Titled Tuesday Blitz"]
[Site "Chess.com"]
[Date "2020.04.21"]
[Round "6"]
[White "TigrVShlyape"]
[Black "afgano29"]
[Result "1-0"]
[WhiteElo "2859"]
[BlackElo "2649"]
[TimeControl "180+1"]
[EndTime "11:08:11 PDT"]
[Termination "TigrVShlyape won by resignation"]

1. d4 {[%clk 0:03:00.9]} 1... Nf6 {[%clk 0:03:00]} 2. Nf3 {[%clk 0:03:00.9]}
2... g6 {[%clk 0:03:00.2]} 3. Bf4 {[%clk 0:02:59.1]} 3... d6 {[%clk 0:02:59.4]}
4. h3 {[%clk 0:02:58.3]} 4... Bg7 {[%clk 0:02:58.7]} 5. c3 {[%clk 0:02:57.6]}
5... O-O {[%clk 0:02:58.8]} 6. Nbd2 {[%clk 0:02:55.8]} 6... b6 {[%clk
0:02:51.2]} 7. e3 {[%clk 0:02:50.6]} 7... Bb7 {[%clk 0:02:51.2]} 8. a4 {[%clk
0:02:50.4]} 8... a5 {[%clk 0:02:50.4]} 9. Bb5 {[%clk 0:02:49.7]} 9... Nbd7
{[%clk 0:02:49.1]} 10. O-O {[%clk 0:02:48.8]} 10... Re8 {[%clk 0:02:42]} 11. Bh2
{[%clk 0:02:17.3]} 11... Ne4 {[%clk 0:02:24.6]} 12. Nxe4 {[%clk 0:02:15.1]}
12... Bxe4 {[%clk 0:02:25.5]} 13. Re1 {[%clk 0:02:10.7]} 13... c6 {[%clk
0:02:12.8]} 14. Bf1 {[%clk 0:02:04.5]} 14... Bxf3 {[%clk 0:01:44.8]} 15. Qxf3
{[%clk 0:02:03.2]} 15... d5 {[%clk 0:01:45]} 16. e4 {[%clk 0:01:55]} 16... e6
{[%clk 0:01:45.1]} 17. Rad1 {[%clk 0:01:49.6]} 17... Qf6 {[%clk 0:01:31.8]} 18.
Qe3 {[%clk 0:01:44.7]} 18... Qe7 {[%clk 0:01:28.9]} 19. Bd3 {[%clk 0:01:40.8]}
19... Rac8 {[%clk 0:01:27.3]} 20. Ba6 {[%clk 0:01:37.1]} 20... Rcd8 {[%clk
0:01:20.9]} 21. Bg3 {[%clk 0:01:24.9]} 21... Nb8 {[%clk 0:01:14.2]} 22. Bd3
{[%clk 0:01:20.8]} 22... Bf8 {[%clk 0:01:13.2]} 23. e5 {[%clk 0:01:16.2]} 23...
Rc8 {[%clk 0:01:11.1]} 24. h4 {[%clk 0:01:14.9]} 24... h5 {[%clk 0:01:07.7]} 25.
Bf4 {[%clk 0:01:01.9]} 25... c5 {[%clk 0:00:59.7]} 26. Bg5 {[%clk 0:00:59.6]}
26... Qc7 {[%clk 0:00:56.6]} 27. g4 {[%clk 0:00:59]} 27... hxg4 {[%clk
0:00:54.7]} 28. h5 {[%clk 0:00:59.1]} 28... cxd4 {[%clk 0:00:29.3]} 29. cxd4
{[%clk 0:00:57]} 29... Nc6 {[%clk 0:00:19]} 30. hxg6 {[%clk 0:00:51.8]} 30...
Nb4 {[%clk 0:00:19.1]} 31. g7 {[%clk 0:00:42.4]} 31... Bxg7 {[%clk 0:00:18.5]}
32. Bf6 {[%clk 0:00:42.5]} 32... Bxf6 {[%clk 0:00:08.7]} 33. exf6 {[%clk
0:00:42]} 1-0

[Event "*** Titled Tuesday Blitz"]
[Site "Chess.com"]
[Date "2020.04.21"]
[Round "6"]
[White "vanea_03"]
[Black "Pomegranate988"]
[Result "1-0"]
[WhiteElo "2656"]
[BlackElo "2487"]
[TimeControl "180+1"]
[EndTime "11:08:12 PDT"]
[Termination "vanea_03 won by resignation"]

1. d4 {[%clk 0:03:00.9]} 1... Nf6 {[%clk 0:02:58.7]} 2. c4 {[%clk 0:03:01.3]}
2... g6 {[%clk 0:02:59.2]} 3. Nc3 {[%clk 0:03:01]} 3... d5 {[%clk 0:02:59.3]} 4.
cxd5 {[%clk 0:03:01.2]} 4... Nxd5 {[%clk 0:03:00.2]} 5. e4 {[%clk 0:03:01.9]}
5... Nxc3 {[%clk 0:03:00.5]} 6. bxc3 {[%clk 0:03:02.7]} 6... Bg7 {[%clk
0:03:00.8]} 7. Nf3 {[%clk 0:03:02.7]} 7... c5 {[%clk 0:02:59.4]} 8. Be3 {[%clk
0:03:03.2]} 8... Nc6 {[%clk 0:02:58.4]} 9. Rc1 {[%clk 0:02:52.1]} 9... O-O
{[%clk 0:02:52.2]} 10. d5 {[%clk 0:02:46.2]} 10... Na5 {[%clk 0:02:52]} 11. Be2
{[%clk 0:02:36.8]} 11... b6 {[%clk 0:02:51.5]} 12. O-O {[%clk 0:02:36.2]} 12...
e5 {[%clk 0:02:33.2]} 13. Nd2 {[%clk 0:02:22.1]} 13... f5 {[%clk 0:02:25.5]} 14.
f3 {[%clk 0:02:20.9]} 14... f4 {[%clk 0:02:24.4]} 15. Bf2 {[%clk 0:02:19.9]}
15... g5 {[%clk 0:02:23]} 16. Nc4 {[%clk 0:02:11.3]} 16... Nxc4 {[%clk
0:02:22.1]} 17. Bxc4 {[%clk 0:02:12.2]} 17... Qd6 {[%clk 0:02:22.4]} 18. a4
{[%clk 0:02:07.4]} 18... Bd7 {[%clk 0:02:19.7]} 19. Rb1 {[%clk 0:02:05.9]} 19...
Rab8 {[%clk 0:02:16.7]} 20. Bb5 {[%clk 0:01:56.8]} 20... h5 {[%clk 0:01:49.1]}
21. Bxd7 {[%clk 0:01:48.9]} 21... Qxd7 {[%clk 0:01:50]} 22. a5 {[%clk
0:01:46.7]} 22... Rf6 {[%clk 0:01:47.5]} 23. axb6 {[%clk 0:01:45.5]} 23... axb6
{[%clk 0:01:47]} 24. Bxc5 {[%clk 0:01:36.6]} 24... g4 {[%clk 0:01:40.3]} 25. Kh1
{[%clk 0:01:36.2]} 25... Rg6 {[%clk 0:01:37.1]} 26. d6 {[%clk 0:01:21.5]} 26...
Qc6 {[%clk 0:01:29.1]} 27. Qd5+ {[%clk 0:01:11.6]} 27... Qxd5 {[%clk 0:01:28.9]}
28. exd5 {[%clk 0:01:12.5]} 28... Bf8 {[%clk 0:01:28.4]} 29. c4 {[%clk
0:01:00.5]} 29... Bxd6 {[%clk 0:01:13.4]} 30. Rxb6 {[%clk 0:00:43.3]} 30... Rxb6
{[%clk 0:01:09]} 31. Bxb6 {[%clk 0:00:44.2]} 31... Kf7 {[%clk 0:00:57.6]} 32. c5
{[%clk 0:00:42.8]} 32... Be7 {[%clk 0:00:55.2]} 33. d6 {[%clk 0:00:35.7]} 33...
Bg5 {[%clk 0:00:51.5]} 34. d7 {[%clk 0:00:33]} 34... Rg8 {[%clk 0:00:50.5]} 35.
c6 {[%clk 0:00:32.2]} 35... Ke6 {[%clk 0:00:49]} 36. Rd1 {[%clk 0:00:28.9]}
36... gxf3 {[%clk 0:00:47.9]} 37. gxf3 {[%clk 0:00:28.9]} 37... e4 {[%clk
0:00:42.8]} 38. fxe4 {[%clk 0:00:26.6]} 38... f3 {[%clk 0:00:42]} 39. c7 {[%clk
0:00:22.1]} 39... f2 {[%clk 0:00:40.2]} 40. c8=Q {[%clk 0:00:22]} 1-0

[Event "*** Titled Tuesday Blitz"]
[Site "Chess.com"]
[Date "2020.04.21"]
[Round "6"]
[White "MarcoCorvi"]
[Black "JulAnt"]
[Result "1-0"]
[WhiteElo "2194"]
[BlackElo "2488"]
[TimeControl "180+1"]
[EndTime "11:08:12 PDT"]
[Termination "MarcoCorvi won by resignation"]

1. e4 {[%clk 0:03:00.9]} 1... c5 {[%clk 0:03:00.1]} 2. Nc3 {[%clk 0:03:00]} 2...
e6 {[%clk 0:02:59.9]} 3. Nf3 {[%clk 0:02:58.1]} 3... d6 {[%clk 0:02:56.1]} 4. d4
{[%clk 0:02:55.9]} 4... cxd4 {[%clk 0:02:57]} 5. Nxd4 {[%clk 0:02:55.8]} 5...
Nf6 {[%clk 0:02:57.7]} 6. g3 {[%clk 0:02:55.6]} 6... Nc6 {[%clk 0:02:55.2]} 7.
Bg2 {[%clk 0:02:55.4]} 7... Be7 {[%clk 0:02:55.6]} 8. O-O {[%clk 0:02:55.4]}
8... O-O {[%clk 0:02:55.9]} 9. Re1 {[%clk 0:02:54.9]} 9... Nxd4 {[%clk
0:02:53.4]} 10. Qxd4 {[%clk 0:02:50.3]} 10... Bd7 {[%clk 0:02:54.3]} 11. a4
{[%clk 0:02:45.9]} 11... Bc6 {[%clk 0:02:53.7]} 12. a5 {[%clk 0:02:44.8]} 12...
Qc7 {[%clk 0:02:35.1]} 13. h3 {[%clk 0:02:31.4]} 13... Rfd8 {[%clk 0:02:34.6]}
14. Be3 {[%clk 0:02:31]} 14... d5 {[%clk 0:02:32.1]} 15. e5 {[%clk 0:02:24]}
15... Nd7 {[%clk 0:02:32.2]} 16. f4 {[%clk 0:02:21.8]} 16... Bc5 {[%clk
0:02:30.6]} 17. Qd2 {[%clk 0:01:58.9]} 17... d4 {[%clk 0:01:51.8]} 18. Bxd4
{[%clk 0:01:57.1]} 18... Nb8 {[%clk 0:01:38.2]} 19. Ne2 {[%clk 0:01:53.2]} 19...
Bxg2 {[%clk 0:01:34.9]} 20. Kxg2 {[%clk 0:01:52.3]} 20... Nc6 {[%clk 0:01:31.5]}
21. c3 {[%clk 0:01:50.7]} 21... Nxa5 {[%clk 0:01:28.5]} 22. Rxa5 {[%clk
0:01:44.1]} 22... Bxd4 {[%clk 0:01:16.2]} 23. cxd4 {[%clk 0:01:35.4]} 23... Qc6+
{[%clk 0:01:07.9]} 24. d5 {[%clk 0:01:31.2]} 24... exd5 {[%clk 0:01:06.5]} 25.
Nd4 {[%clk 0:01:29.9]} 25... Qb6 {[%clk 0:01:06.4]} 26. Rc1 {[%clk 0:01:24.1]}
26... Rac8 {[%clk 0:01:05.2]} 27. Rxc8 {[%clk 0:01:16.1]} 27... Rxc8 {[%clk
0:01:06.1]} 28. Rxd5 {[%clk 0:01:15.3]} 28... h6 {[%clk 0:01:05.1]} 29. Nf3
{[%clk 0:01:01.8]} 29... Rc6 {[%clk 0:00:52.5]} 30. Rd8+ {[%clk 0:00:56.2]}
30... Kh7 {[%clk 0:00:52.6]} 31. Qd3+ {[%clk 0:00:55.2]} 31... g6 {[%clk
0:00:52.7]} 32. b3 {[%clk 0:00:52.5]} 32... Qc7 {[%clk 0:00:52.7]} 33. h4 {[%clk
0:00:44.4]} 33... Rc2+ {[%clk 0:00:51.6]} 34. Kh3 {[%clk 0:00:43.5]} 34... Rb2
{[%clk 0:00:46.8]} 35. Qd5 {[%clk 0:00:41.5]} 35... Rb1 {[%clk 0:00:19.6]} 36.
Rd7 {[%clk 0:00:34.9]} 1-0